{"text_format":"1","workbook":"xlsx","n_sheets":5,"sheets":["6","Sheet3 (2)","Sheet1","Sheet2","Sheet3"],"not_rendered":{"charts":0,"images":1,"macros":1,"external_links":2,"defined_names":29,"comments":0,"pivot_tables":0},"unopened":[],"bounds":{"document_bytes":16777216,"sheet_cells":100000,"rows_first":2000,"rows_last":500,"rows_between":2000,"halvings":0,"cell_chars":16384,"cell_head_chars":4096},"cells_cut":0,"cells_raw":0,"read":"whole","date_system":"1900"}

{"sheet":"6","index":0,"n_rows":507,"n_cols":38,"rows_kept":507,"cut":false,"hidden":false,"merged":[[1,28,1,29],[2,1,2,2],[2,3,2,4],[2,8,2,18],[2,21,3,24],[2,28,2,29],[3,1,3,2],[4,1,4,2],[4,3,4,4],[4,14,4,15],[1,1,1,3],[1,7,1,16],[3,3,3,5],[3,6,3,7],[3,8,3,12],[3,14,3,15],[3,16,3,19],[1,17,1,23],[5,0,5,3],[5,5,5,12],[5,13,5,26],[6,0,7,0],[6,1,7,1],[6,2,7,2],[6,3,7,3],[6,5,7,5],[6,6,7,6],[6,7,7,7],[7,23,9,23],[7,24,9,24],[7,25,9,25],[7,26,9,26],[8,0,9,0],[8,1,9,3],[7,17,9,17],[7,18,9,18],[6,8,7,8],[6,9,7,9],[6,10,7,10],[6,13,6,19],[7,19,9,19],[7,4,8,4],[7,13,9,13],[7,14,9,14],[7,15,9,15],[7,16,9,16],[7,21,9,21],[7,22,9,22],[6,28,8,28],[6,29,8,29],[6,30,8,30],[6,20,6,26],[6,27,8,27],[7,20,9,20]]}
[null,null,null,null,null,null,null,{"$f":"IF($H$7=0,1,\"\")","v":""},{"$f":"IF($I$7=0,1,\"\")","v":""},{"$f":"IF($J$7=0,0,\"\")","v":""},null,null,{"$f":"IF($M$7=0,1,\"\")","v":1},null,null,{"$f":"IF($P$8=0,1,\"\")","v":""},{"$f":"IF($Q$8=0,1,\"\")","v":""},{"$f":"IF($R$8=0,1,\"\")","v":""},{"$f":"IF($S$8=0,1,\"\")","v":1},{"$f":"IF($T$8=0,1,\"\")","v":1},{"$f":"IF($U$8=0,1,\"\")","v":""},{"$f":"IF($V$8=0,1,\"\")","v":""},{"$f":"IF($W$8=0,1,\"\")","v":""},{"$f":"IF($X$8=0,1,\"\")","v":1},{"$f":"IF($Y$8=0,1,\"\")","v":""},{"$f":"IF($Z$8=0,1,\"\")","v":1},{"$f":"IF($AA$8=0,1,\"\")","v":1},{"$f":"IF($AG$6=\"ناجح\",1,\"\")","v":""}]
[null,"وزارة التربية والتعليم",null,null,null,null,null,"كشف رصد درجات امتحان النقل للصف",null,null,null,null,null,null,null,null,null,null,null,null,null,null,null,null,null,null,null,null,"عام"]
[null,"محافظة :  ",null,null,null,null,null,null,"منهجية الجدارات       ",null,null,null,null,null,null,null,null,null,null,null,null,"نظامى"]
[null,"ادارة :",null,null,null,null,"مجال :",null,null,null,null,null,null,null,"الدور"]
[null,"مدرسة :"]
[null,null,null,null,null,"المواد الثقافية",null,null,null,null,null,null,null,"وحدات الجدارات"]
["مسلسل","رقم الجلوس","الديانة","قيد الطالب",null,"اللغة العربية","اللغة الانجليزية","التربية القومية","غغغغغ","الرياضيات","المجموع الكلى",null,null,"ترم اول",null,null,null,null,null,null,"ترم ثانى",null,null,null,null,null,null,"عدد المواد","حالة الطالب","الرقم القومى","مواد الرسوب"]
[null,null,null,null,"اسم الطالب",null,null,null,null,null,null,"ytyt",0,"اعداد الارض لزراعة محاصيل الخضر والزينة فى الحقل المكشوف والزراعات المحمية","انشاء مشاتل الحاصلات البستانية","ghjgjg","jhfgjhgjg","ghjgjhg",0,0,"اعداد الارض لزراعة الفاكهه والزينة فى الحقل المكشوف والزراعات المحمية","زراعة اشجار الفاكهه والزينة","مكافحة افات نباتات الزينة",0,"حاسب الى",0,0]
[null,null,null,null,null,30,10,20,20,30,110,20,20]
[null,null,null,null,null,15,5,10,10,15,55,10,10]
[{"$f":"IF(B11=\"\",\"\",1)","v":1},110,"مسلم","ناجح ومنقول","ابراهيم اشرف حسين عبد المجيد",16,12,10,17,21,76,11,null,"جدير","جدير","جدير","جدير","جدير",null,null,"جدير","جدير","جدير",null,"جدير",null,null,0,"ناجح",462395421,"                   "]
[{"$f":"IF(B12=\"\",\"\",A11+1)","v":2},111,"مسلم","مستجد","احمد ابراهيم ابوالحمد عبدالعال",16,12,10,17,21,76,11,null,"جدير","جدير","جدير","جدير","جدير",null,null,"جدير","جدير","جدير",null,"جدير",null,null,0,"ناجح",462681256,"                   "]
[{"$f":"IF(B13=\"\",\"\",A12+1)","v":3},112,"مسلم","مستجد","احمد ابراهيم نور الدين يونس",16,12,10,17,21,76,11,null,"جدير","جدير","جدير","جدير","جدير",null,null,"جدير","جدير","جدير",null,"جدير",null,null,0,"ناجح",455120481,"                   "]
[4,113,"مسلم","مستجد","احمد السيد احمد صادق",16,12,10,17,21,76,11,null,"جدير","جدير","جدير","جدير","جدير",null,null,"جدير","جدير","غير جدير",null,"جدير",null,null,1,"دور ثان",462629111,"              مكافحة افات نباتات الزينة     "]
[5,114,"مسلم","مستجد","احمد حلمى موافى على",16,12,10,17,21,76,11,null,"جدير","جدير","جدير","جدير","جدير",null,null,"جدير","جدير","جدير",null,"جدير",null,null,0,"ناجح",462113227,"                   "]
[6,115,"مسلم","مستجد","احمد رمضان احمد عبدالحميد",16,12,10,17,21,76,11,null,"جدير","جدير","جدير","جدير","جدير",null,null,"غير جدير","غير جدير","غ",null,"جدير",null,null,3,"راسب",463404388,"            اعداد الارض لزراعة الفاكهه والزينة فى الحقل المكشوف والزراعات المحمية زراعة اشجار الفاكهه والزينة مكافحة افات نباتات الزينة     "]
[7,116,"مسلم","مستجد","احمد سمير عبدالفتاح حمدان",16,12,10,17,21,76,11,null,"جدير","جدير","جدير","جدير","جدير",null,null,"جدير","جدير","جدير",null,"جدير",null,null,0,"ناجح",460067204,"                   "]
[8,117,"مسلم","مستجد","احمد عبد اللاه السيد محمد",16,12,10,17,21,76,11,null,"جدير","جدير","جدير","جدير","جدير",null,null,"جدير","جدير","جدير",null,"جدير",null,null,0,"ناجح",462803442,"                   "]
[9,118,"مسلم","مستجد","احمد عطا نورالدين سليمان",16,12,10,17,21,76,11,null,"جدير","جدير","جدير","جدير","جدير",null,null,"جدير","جدير","جدير",null,"جدير",null,null,0,"ناجح",462540706,"                   "]
[10,119,"مسلم","مستجد","احمد علي الورداني علي",16,12,10,17,21,76,11,null,"جدير","جدير","جدير","جدير","جدير",null,null,"جدير","جدير","جدير",null,"جدير",null,null,0,"ناجح",462366528,"                   "]
[11,120,"مسلم","مستجد","احمد محمد عبدالشافي محمد",16,12,10,17,21,76,11,null,"جدير","جدير","جدير","جدير","جدير",null,null,"جدير","جدير","جدير",null,"جدير",null,null,0,"ناجح",462193591,"                   "]
[12,121,"مسلم","مستجد","احمد محمد عبدالفتاح محمد",16,12,10,17,21,76,11,null,"جدير","جدير","جدير","جدير","جدير",null,null,"جدير","جدير","جدير",null,"جدير",null,null,0,"ناجح",462198727,"                   "]
[13,122,"مسلم","مستجد","احمد محمد عبداللطيف محمد",16,12,10,17,21,76,11,null,"جدير","جدير","جدير","جدير","جدير",null,null,"جدير","جدير","جدير",null,"جدير",null,null,0,"ناجح",458550730,"                   "]
[14,123,"مسلم","مستجد","احمد مصطفى احمد فهيم",25,25,18,18,9,95,12,null,"غير جدير","جدير","جدير","جدير","جدير",null,null,"جدير","جدير","جدير","جدير","جدير",null,null,2,"دور ثان",462107304,"    الرياضيات اعداد الارض لزراعة محاصيل الخضر والزينة فى الحقل المكشوف والزراعات المحمية              "]
[15,124,"مسلم","مستجد","احمد مهران احمد عبد العزيز",15,9,3,3,15,45,12,null,"جدير","جدير","جدير","جدير","جدير",null,null,"جدير","جدير","جدير","جدير","جدير",null,null,2,"دور ثان",462207440,"  التربية القومية غغغغغ                "]
["",null,null,null,null,null,null,null,null,null,null,null,null,null,null,null,null,null,null,null,null,null,null,null,null,null,null,null,null,null,"                   "]
["",null,null,null,null,null,null,null,null,null,null,null,null,null,null,null,null,null,null,null,null,null,null,null,null,null,null,null,null,null,"                   "]
["",null,null,null,null,null,null,null,null,null,null,null,null,null,null,null,null,null,null,null,null,null,null,null,null,null,null,null,null,null,"                   ",null,null,null,null,null,null,"hjh"]
["",null,null,null,null,null,null,null,null,null,null,null,null,null,null,null,null,null,null,null,null,null,null,null,null,null,null,null,null,null,"                   "]
["",null,null,null,null,null,null,null,null,null,null,null,null,null,null,null,null,null,null,null,null,null,null,null,null,null,null,null,null,null,"                   "]
["",null,null,null,null,null,null,null,null,null,null,null,null,null,null,null,null,null,null,null,null,null,null,null,null,null,null,null,null,null,"                   "]
["",null,null,null,null,null,null,null,null,null,null,null,null,null,null,null,null,null,null,null,null,null,null,null,null,null,null,null,null,null,"                   "]
["",null,null,null,null,null,null,null,null,null,null,null,null,null,null,null,null,null,null,null,null,null,null,null,null,null,null,null,null,null,"                   "]
["",null,null,null,null,null,null,null,null,null,null,null,null,null,null,null,null,null,null,null,null,null,null,null,null,null,null,null,null,null,"                   "]
["",null,null,null,null,null,null,null,null,null,null,null,null,null,null,null,null,null,null,null,null,null,null,null,null,null,null,null,null,null,"                   "]
["",null,null,null,null,null,null,null,null,null,null,null,null,null,null,null,null,null,null,null,null,null,null,null,null,null,null,null,null,null,"                   "]
["",null,null,null,null,null,null,null,null,null,null,null,null,null,null,null,null,null,null,null,null,null,null,null,null,null,null,null,null,null,"                   "]
["",null,null,null,null,null,null,null,null,null,null,null,null,null,null,null,null,null,null,null,null,null,null,null,null,null,null,null,null,null,"                   "]
["",null,null,null,null,null,null,null,null,null,null,null,null,null,null,null,null,null,null,null,null,null,null,null,null,null,null,null,null,null,"                   "]
["",null,null,null,null,null,null,null,null,null,null,null,null,null,null,null,null,null,null,null,null,null,null,null,null,null,null,null,null,null,"                   "]
["",null,null,null,null,null,null,null,null,null,null,null,null,null,null,null,null,null,null,null,null,null,null,null,null,null,null,null,null,null,"                   "]
["",null,null,null,null,null,null,null,null,null,null,null,null,null,null,null,null,null,null,null,null,null,null,null,null,null,null,null,null,null,"                   "]
["",null,null,null,null,null,null,null,null,null,null,null,null,null,null,null,null,null,null,null,null,null,null,null,null,null,null,null,null,null,"                   "]
["",null,null,null,null,null,null,null,null,null,null,null,null,null,null,null,null,null,null,null,null,null,null,null,null,null,null,null,null,null,"                   "]
["",null,null,null,null,null,null,null,null,null,null,null,null,null,null,null,null,null,null,null,null,null,null,null,null,null,null,null,null,null,"                   "]
["",null,null,null,null,null,null,null,null,null,null,null,null,null,null,null,null,null,null,null,null,null,null,null,null,null,null,null,null,null,"                   "]
["",null,null,null,null,null,null,null,null,null,null,null,null,null,null,null,null,null,null,null,null,null,null,null,null,null,null,null,null,null,"                   "]
["",null,null,null,null,null,null,null,null,null,null,null,null,null,null,null,null,null,null,null,null,null,null,null,null,null,null,null,null,null,"                   "]
["",null,null,null,null,null,null,null,null,null,null,null,null,null,null,null,null,null,null,null,null,null,null,null,null,null,null,null,null,null,"                   "]
["",null,null,null,null,null,null,null,null,null,null,null,null,null,null,null,null,null,null,null,null,null,null,null,null,null,null,null,null,null,"                   "]
["",null,null,null,null,null,null,null,null,null,null,null,null,null,null,null,null,null,null,null,null,null,null,null,null,null,null,null,null,null,"                   "]
["",null,null,null,null,null,null,null,null,null,null,null,null,null,null,null,null,null,null,null,null,null,null,null,null,null,null,null,null,null,"                   "]
["",null,null,null,null,null,null,null,null,null,null,null,null,null,null,null,null,null,null,null,null,null,null,null,null,null,null,null,null,null,"                   "]
["",null,null,null,null,null,null,null,null,null,null,null,null,null,null,null,null,null,null,null,null,null,null,null,null,null,null,null,null,null,"                   "]
["",null,null,null,null,null,null,null,null,null,null,null,null,null,null,null,null,null,null,null,null,null,null,null,null,null,null,null,null,null,"                   "]
["",null,null,null,null,null,null,null,null,null,null,null,null,null,null,null,null,null,null,null,null,null,null,null,null,null,null,null,null,null,"                   "]
["",null,null,null,null,null,null,null,null,null,null,null,null,null,null,null,null,null,null,null,null,null,null,null,null,null,null,null,null,null,"                   "]
["",null,null,null,null,null,null,null,null,null,null,null,null,null,null,null,null,null,null,null,null,null,null,null,null,null,null,null,null,null,"                   "]
["",null,null,null,null,null,null,null,null,null,null,null,null,null,null,null,null,null,null,null,null,null,null,null,null,null,null,null,null,null,"                   "]
["",null,null,null,null,null,null,null,null,null,null,null,null,null,null,null,null,null,null,null,null,null,null,null,null,null,null,null,null,null,"                   "]
["",null,null,null,null,null,null,null,null,null,null,null,null,null,null,null,null,null,null,null,null,null,null,null,null,null,null,null,null,null,"                   "]
["",null,null,null,null,null,null,null,null,null,null,null,null,null,null,null,null,null,null,null,null,null,null,null,null,null,null,null,null,null,"                   "]
["",null,null,null,null,null,null,null,null,null,null,null,null,null,null,null,null,null,null,null,null,null,null,null,null,null,null,null,null,null,"                   "]
["",null,null,null,null,null,null,null,null,null,null,null,null,null,null,null,null,null,null,null,null,null,null,null,null,null,null,null,null,null,"                   "]
["",null,null,null,null,null,null,null,null,null,null,null,null,null,null,null,null,null,null,null,null,null,null,null,null,null,null,null,null,null,"                   "]
["",null,null,null,null,null,null,null,null,null,null,null,null,null,null,null,null,null,null,null,null,null,null,null,null,null,null,null,null,null,"                   "]
["",null,null,null,null,null,null,null,null,null,null,null,null,null,null,null,null,null,null,null,null,null,null,null,null,null,null,null,null,null,"                   "]
["",null,null,null,null,null,null,null,null,null,null,null,null,null,null,null,null,null,null,null,null,null,null,null,null,null,null,null,null,null,"                   "]
["",null,null,null,null,null,null,null,null,null,null,null,null,null,null,null,null,null,null,null,null,null,null,null,null,null,null,null,null,null,"                   "]
["",null,null,null,null,null,null,null,null,null,null,null,null,null,null,null,null,null,null,null,null,null,null,null,null,null,null,null,null,null,"                   "]
["",null,null,null,null,null,null,null,null,null,null,null,null,null,null,null,null,null,null,null,null,null,null,null,null,null,null,null,null,null,"                   "]
["",null,null,null,null,null,null,null,null,null,null,null,null,null,null,null,null,null,null,null,null,null,null,null,null,null,null,null,null,null,"                   "]
["",null,null,null,null,null,null,null,null,null,null,null,null,null,null,null,null,null,null,null,null,null,null,null,null,null,null,null,null,null,"                   "]
["",null,null,null,null,null,null,null,null,null,null,null,null,null,null,null,null,null,null,null,null,null,null,null,null,null,null,null,null,null,"                   "]
["",null,null,null,null,null,null,null,null,null,null,null,null,null,null,null,null,null,null,null,null,null,null,null,null,null,null,null,null,null,"                   "]
["",null,null,null,null,null,null,null,null,null,null,null,null,null,null,null,null,null,null,null,null,null,null,null,null,null,null,null,null,null,"                   "]
[{"$f":"IF(B77=\"\",\"\",A76+1)","v":""},null,null,null,null,null,null,null,null,null,null,null,null,null,null,null,null,null,null,null,null,null,null,null,null,null,null,null,null,null,"                   "]
["",null,null,null,null,null,null,null,null,null,null,null,null,null,null,null,null,null,null,null,null,null,null,null,null,null,null,null,null,null,"                   "]
["",null,null,null,null,null,null,null,null,null,null,null,null,null,null,null,null,null,null,null,null,null,null,null,null,null,null,null,null,null,"                   "]
["",null,null,null,null,null,null,null,null,null,null,null,null,null,null,null,null,null,null,null,null,null,null,null,null,null,null,null,null,null,"                   "]
["",null,null,null,null,null,null,null,null,null,null,null,null,null,null,null,null,null,null,null,null,null,null,null,null,null,null,null,null,null,"                   "]
["",null,null,null,null,null,null,null,null,null,null,null,null,null,null,null,null,null,null,null,null,null,null,null,null,null,null,null,null,null,"                   "]
["",null,null,null,null,null,null,null,null,null,null,null,null,null,null,null,null,null,null,null,null,null,null,null,null,null,null,null,null,null,"                   "]
["",null,null,null,null,null,null,null,null,null,null,null,null,null,null,null,null,null,null,null,null,null,null,null,null,null,null,null,null,null,"                   "]
["",null,null,null,null,null,null,null,null,null,null,null,null,null,null,null,null,null,null,null,null,null,null,null,null,null,null,null,null,null,"                   "]
["",null,null,null,null,null,null,null,null,null,null,null,null,null,null,null,null,null,null,null,null,null,null,null,null,null,null,null,null,null,"                   "]
["",null,null,null,null,null,null,null,null,null,null,null,null,null,null,null,null,null,null,null,null,null,null,null,null,null,null,null,null,null,"                   "]
["",null,null,null,null,null,null,null,null,null,null,null,null,null,null,null,null,null,null,null,null,null,null,null,null,null,null,null,null,null,"                   "]
["",null,null,null,null,null,null,null,null,null,null,null,null,null,null,null,null,null,null,null,null,null,null,null,null,null,null,null,null,null,"                   "]
["",null,null,null,null,null,null,null,null,null,null,null,null,null,null,null,null,null,null,null,null,null,null,null,null,null,null,null,null,null,"                   "]
["",null,null,null,null,null,null,null,null,null,null,null,null,null,null,null,null,null,null,null,null,null,null,null,null,null,null,null,null,null,"                   "]
["",null,null,null,null,null,null,null,null,null,null,null,null,null,null,null,null,null,null,null,null,null,null,null,null,null,null,null,null,null,"                   "]
["",null,null,null,null,null,null,null,null,null,null,null,null,null,null,null,null,null,null,null,null,null,null,null,null,null,null,null,null,null,"                   "]
["",null,null,null,null,null,null,null,null,null,null,null,null,null,null,null,null,null,null,null,null,null,null,null,null,null,null,null,null,null,"                   "]
["",null,null,null,null,null,null,null,null,null,null,null,null,null,null,null,null,null,null,null,null,null,null,null,null,null,null,null,null,null,"                   "]
["",null,null,null,null,null,null,null,null,null,null,null,null,null,null,null,null,null,null,null,null,null,null,null,null,null,null,null,null,null,"                   "]
["",null,null,null,null,null,null,null,null,null,null,null,null,null,null,null,null,null,null,null,null,null,null,null,null,null,null,null,null,null,"                   "]
["",null,null,null,null,null,null,null,null,null,null,null,null,null,null,null,null,null,null,null,null,null,null,null,null,null,null,null,null,null,"                   "]
["",null,null,null,null,null,null,null,null,null,null,null,null,null,null,null,null,null,null,null,null,null,null,null,null,null,null,null,null,null,"                   "]
["",null,null,null,null,null,null,null,null,null,null,null,null,null,null,null,null,null,null,null,null,null,null,null,null,null,null,null,null,null,"                   "]
["",null,null,null,null,null,null,null,null,null,null,null,null,null,null,null,null,null,null,null,null,null,null,null,null,null,null,null,null,null,"                   "]
["",null,null,null,null,null,null,null,null,null,null,null,null,null,null,null,null,null,null,null,null,null,null,null,null,null,null,null,null,null,"                   "]
["",null,null,null,null,null,null,null,null,null,null,null,null,null,null,null,null,null,null,null,null,null,null,null,null,null,null,null,null,null,"                   "]
["",null,null,null,null,null,null,null,null,null,null,null,null,null,null,null,null,null,null,null,null,null,null,null,null,null,null,null,null,null,"                   "]
["",null,null,null,null,null,null,null,null,null,null,null,null,null,null,null,null,null,null,null,null,null,null,null,null,null,null,null,null,null,"                   "]
["",null,null,null,null,null,null,null,null,null,null,null,null,null,null,null,null,null,null,null,null,null,null,null,null,null,null,null,null,null,"                   "]
["",null,null,null,null,null,null,null,null,null,null,null,null,null,null,null,null,null,null,null,null,null,null,null,null,null,null,null,null,null,"                   "]
["",null,null,null,null,null,null,null,null,null,null,null,null,null,null,null,null,null,null,null,null,null,null,null,null,null,null,null,null,null,"                   "]
["",null,null,null,null,null,null,null,null,null,null,null,null,null,null,null,null,null,null,null,null,null,null,null,null,null,null,null,null,null,"                   "]
["",null,null,null,null,null,null,null,null,null,null,null,null,null,null,null,null,null,null,null,null,null,null,null,null,null,null,null,null,null,"                   "]
["",null,null,null,null,null,null,null,null,null,null,null,null,null,null,null,null,null,null,null,null,null,null,null,null,null,null,null,null,null,"                   "]
["",null,null,null,null,null,null,null,null,null,null,null,null,null,null,null,null,null,null,null,null,null,null,null,null,null,null,null,null,null,"                   "]
["",null,null,null,null,null,null,null,null,null,null,null,null,null,null,null,null,null,null,null,null,null,null,null,null,null,null,null,null,null,"                   "]
["",null,null,null,null,null,null,null,null,null,null,null,null,null,null,null,null,null,null,null,null,null,null,null,null,null,null,null,null,null,"                   "]
["",null,null,null,null,null,null,null,null,null,null,null,null,null,null,null,null,null,null,null,null,null,null,null,null,null,null,null,null,null,"                   "]
["",null,null,null,null,null,null,null,null,null,null,null,null,null,null,null,null,null,null,null,null,null,null,null,null,null,null,null,null,null,"                   "]
["",null,null,null,null,null,null,null,null,null,null,null,null,null,null,null,null,null,null,null,null,null,null,null,null,null,null,null,null,null,"                   "]
["",null,null,null,null,null,null,null,null,null,null,null,null,null,null,null,null,null,null,null,null,null,null,null,null,null,null,null,null,null,"                   "]
["",null,null,null,null,null,null,null,null,null,null,null,null,null,null,null,null,null,null,null,null,null,null,null,null,null,null,null,null,null,"                   "]
["",null,null,null,null,null,null,null,null,null,null,null,null,null,null,null,null,null,null,null,null,null,null,null,null,null,null,null,null,null,"                   "]
["",null,null,null,null,null,null,null,null,null,null,null,null,null,null,null,null,null,null,null,null,null,null,null,null,null,null,null,null,null,"                   "]
["",null,null,null,null,null,null,null,null,null,null,null,null,null,null,null,null,null,null,null,null,null,null,null,null,null,null,null,null,null,"                   "]
["",null,null,null,null,null,null,null,null,null,null,null,null,null,null,null,null,null,null,null,null,null,null,null,null,null,null,null,null,null,"                   "]
["",null,null,null,null,null,null,null,null,null,null,null,null,null,null,null,null,null,null,null,null,null,null,null,null,null,null,null,null,null,"                   "]
["",null,null,null,null,null,null,null,null,null,null,null,null,null,null,null,null,null,null,null,null,null,null,null,null,null,null,null,null,null,"                   "]
["",null,null,null,null,null,null,null,null,null,null,null,null,null,null,null,null,null,null,null,null,null,null,null,null,null,null,null,null,null,"                   "]
["",null,null,null,null,null,null,null,null,null,null,null,null,null,null,null,null,null,null,null,null,null,null,null,null,null,null,null,null,null,"                   "]
["",null,null,null,null,null,null,null,null,null,null,null,null,null,null,null,null,null,null,null,null,null,null,null,null,null,null,null,null,null,"                   "]
["",null,null,null,null,null,null,null,null,null,null,null,null,null,null,null,null,null,null,null,null,null,null,null,null,null,null,null,null,null,"                   "]
["",null,null,null,null,null,null,null,null,null,null,null,null,null,null,null,null,null,null,null,null,null,null,null,null,null,null,null,null,null,"                   "]
["",null,null,null,null,null,null,null,null,null,null,null,null,null,null,null,null,null,null,null,null,null,null,null,null,null,null,null,null,null,"                   "]
["",null,null,null,null,null,null,null,null,null,null,null,null,null,null,null,null,null,null,null,null,null,null,null,null,null,null,null,null,null,"                   "]
["",null,null,null,null,null,null,null,null,null,null,null,null,null,null,null,null,null,null,null,null,null,null,null,null,null,null,null,null,null,"                   "]
["",null,null,null,null,null,null,null,null,null,null,null,null,null,null,null,null,null,null,null,null,null,null,null,null,null,null,null,null,null,"                   "]
["",null,null,null,null,null,null,null,null,null,null,null,null,null,null,null,null,null,null,null,null,null,null,null,null,null,null,null,null,null,"                   "]
["",null,null,null,null,null,null,null,null,null,null,null,null,null,null,null,null,null,null,null,null,null,null,null,null,null,null,null,null,null,"                   "]
["",null,null,null,null,null,null,null,null,null,null,null,null,null,null,null,null,null,null,null,null,null,null,null,null,null,null,null,null,null,"                   "]
["",null,null,null,null,null,null,null,null,null,null,null,null,null,null,null,null,null,null,null,null,null,null,null,null,null,null,null,null,null,"                   "]
["",null,null,null,null,null,null,null,null,null,null,null,null,null,null,null,null,null,null,null,null,null,null,null,null,null,null,null,null,null,"                   "]
["",null,null,null,null,null,null,null,null,null,null,null,null,null,null,null,null,null,null,null,null,null,null,null,null,null,null,null,null,null,"                   "]
[{"$f":"IF(B141=\"\",\"\",A140+1)","v":""},null,null,null,null,null,null,null,null,null,null,null,null,null,null,null,null,null,null,null,null,null,null,null,null,null,null,null,null,null,"                   "]
["",null,null,null,null,null,null,null,null,null,null,null,null,null,null,null,null,null,null,null,null,null,null,null,null,null,null,null,null,null,"                   "]
["",null,null,null,null,null,null,null,null,null,null,null,null,null,null,null,null,null,null,null,null,null,null,null,null,null,null,null,null,null,"                   "]
["",null,null,null,null,null,null,null,null,null,null,null,null,null,null,null,null,null,null,null,null,null,null,null,null,null,null,null,null,null,"                   "]
["",null,null,null,null,null,null,null,null,null,null,null,null,null,null,null,null,null,null,null,null,null,null,null,null,null,null,null,null,null,"                   "]
["",null,null,null,null,null,null,null,null,null,null,null,null,null,null,null,null,null,null,null,null,null,null,null,null,null,null,null,null,null,"                   "]
["",null,null,null,null,null,null,null,null,null,null,null,null,null,null,null,null,null,null,null,null,null,null,null,null,null,null,null,null,null,"                   "]
["",null,null,null,null,null,null,null,null,null,null,null,null,null,null,null,null,null,null,null,null,null,null,null,null,null,null,null,null,null,"                   "]
["",null,null,null,null,null,null,null,null,null,null,null,null,null,null,null,null,null,null,null,null,null,null,null,null,null,null,null,null,null,"                   "]
["",null,null,null,null,null,null,null,null,null,null,null,null,null,null,null,null,null,null,null,null,null,null,null,null,null,null,null,null,null,"                   "]
["",null,null,null,null,null,null,null,null,null,null,null,null,null,null,null,null,null,null,null,null,null,null,null,null,null,null,null,null,null,"                   "]
["",null,null,null,null,null,null,null,null,null,null,null,null,null,null,null,null,null,null,null,null,null,null,null,null,null,null,null,null,null,"                   "]
["",null,null,null,null,null,null,null,null,null,null,null,null,null,null,null,null,null,null,null,null,null,null,null,null,null,null,null,null,null,"                   "]
["",null,null,null,null,null,null,null,null,null,null,null,null,null,null,null,null,null,null,null,null,null,null,null,null,null,null,null,null,null,"                   "]
["",null,null,null,null,null,null,null,null,null,null,null,null,null,null,null,null,null,null,null,null,null,null,null,null,null,null,null,null,null,"                   "]
["",null,null,null,null,null,null,null,null,null,null,null,null,null,null,null,null,null,null,null,null,null,null,null,null,null,null,null,null,null,"                   "]
["",null,null,null,null,null,null,null,null,null,null,null,null,null,null,null,null,null,null,null,null,null,null,null,null,null,null,null,null,null,"                   "]
["",null,null,null,null,null,null,null,null,null,null,null,null,null,null,null,null,null,null,null,null,null,null,null,null,null,null,null,null,null,"                   "]
["",null,null,null,null,null,null,null,null,null,null,null,null,null,null,null,null,null,null,null,null,null,null,null,null,null,null,null,null,null,"                   "]
["",null,null,null,null,null,null,null,null,null,null,null,null,null,null,null,null,null,null,null,null,null,null,null,null,null,null,null,null,null,"                   "]
["",null,null,null,null,null,null,null,null,null,null,null,null,null,null,null,null,null,null,null,null,null,null,null,null,null,null,null,null,null,"                   "]
["",null,null,null,null,null,null,null,null,null,null,null,null,null,null,null,null,null,null,null,null,null,null,null,null,null,null,null,null,null,"                   "]
["",null,null,null,null,null,null,null,null,null,null,null,null,null,null,null,null,null,null,null,null,null,null,null,null,null,null,null,null,null,"                   "]
["",null,null,null,null,null,null,null,null,null,null,null,null,null,null,null,null,null,null,null,null,null,null,null,null,null,null,null,null,null,"                   "]
["",null,null,null,null,null,null,null,null,null,null,null,null,null,null,null,null,null,null,null,null,null,null,null,null,null,null,null,null,null,"                   "]
["",null,null,null,null,null,null,null,null,null,null,null,null,null,null,null,null,null,null,null,null,null,null,null,null,null,null,null,null,null,"                   "]
["",null,null,null,null,null,null,null,null,null,null,null,null,null,null,null,null,null,null,null,null,null,null,null,null,null,null,null,null,null,"                   "]
["",null,null,null,null,null,null,null,null,null,null,null,null,null,null,null,null,null,null,null,null,null,null,null,null,null,null,null,null,null,"                   "]
["",null,null,null,null,null,null,null,null,null,null,null,null,null,null,null,null,null,null,null,null,null,null,null,null,null,null,null,null,null,"                   "]
["",null,null,null,null,null,null,null,null,null,null,null,null,null,null,null,null,null,null,null,null,null,null,null,null,null,null,null,null,null,"                   "]
["",null,null,null,null,null,null,null,null,null,null,null,null,null,null,null,null,null,null,null,null,null,null,null,null,null,null,null,null,null,"                   "]
["",null,null,null,null,null,null,null,null,null,null,null,null,null,null,null,null,null,null,null,null,null,null,null,null,null,null,null,null,null,"                   "]
["",null,null,null,null,null,null,null,null,null,null,null,null,null,null,null,null,null,null,null,null,null,null,null,null,null,null,null,null,null,"                   "]
["",null,null,null,null,null,null,null,null,null,null,null,null,null,null,null,null,null,null,null,null,null,null,null,null,null,null,null,null,null,"                   "]
["",null,null,null,null,null,null,null,null,null,null,null,null,null,null,null,null,null,null,null,null,null,null,null,null,null,null,null,null,null,"                   "]
["",null,null,null,null,null,null,null,null,null,null,null,null,null,null,null,null,null,null,null,null,null,null,null,null,null,null,null,null,null,"                   "]
["",null,null,null,null,null,null,null,null,null,null,null,null,null,null,null,null,null,null,null,null,null,null,null,null,null,null,null,null,null,"                   "]
["",null,null,null,null,null,null,null,null,null,null,null,null,null,null,null,null,null,null,null,null,null,null,null,null,null,null,null,null,null,"                   "]
["",null,null,null,null,null,null,null,null,null,null,null,null,null,null,null,null,null,null,null,null,null,null,null,null,null,null,null,null,null,"                   "]
["",null,null,null,null,null,null,null,null,null,null,null,null,null,null,null,null,null,null,null,null,null,null,null,null,null,null,null,null,null,"                   "]
["",null,null,null,null,null,null,null,null,null,null,null,null,null,null,null,null,null,null,null,null,null,null,null,null,null,null,null,null,null,"                   "]
["",null,null,null,null,null,null,null,null,null,null,null,null,null,null,null,null,null,null,null,null,null,null,null,null,null,null,null,null,null,"                   "]
["",null,null,null,null,null,null,null,null,null,null,null,null,null,null,null,null,null,null,null,null,null,null,null,null,null,null,null,null,null,"                   "]
["",null,null,null,null,null,null,null,null,null,null,null,null,null,null,null,null,null,null,null,null,null,null,null,null,null,null,null,null,null,"                   "]
["",null,null,null,null,null,null,null,null,null,null,null,null,null,null,null,null,null,null,null,null,null,null,null,null,null,null,null,null,null,"                   "]
["",null,null,null,null,null,null,null,null,null,null,null,null,null,null,null,null,null,null,null,null,null,null,null,null,null,null,null,null,null,"                   "]
["",null,null,null,null,null,null,null,null,null,null,null,null,null,null,null,null,null,null,null,null,null,null,null,null,null,null,null,null,null,"                   "]
["",null,null,null,null,null,null,null,null,null,null,null,null,null,null,null,null,null,null,null,null,null,null,null,null,null,null,null,null,null,"                   "]
["",null,null,null,null,null,null,null,null,null,null,null,null,null,null,null,null,null,null,null,null,null,null,null,null,null,null,null,null,null,"                   "]
["",null,null,null,null,null,null,null,null,null,null,null,null,null,null,null,null,null,null,null,null,null,null,null,null,null,null,null,null,null,"                   "]
["",null,null,null,null,null,null,null,null,null,null,null,null,null,null,null,null,null,null,null,null,null,null,null,null,null,null,null,null,null,"                   "]
["",null,null,null,null,null,null,null,null,null,null,null,null,null,null,null,null,null,null,null,null,null,null,null,null,null,null,null,null,null,"                   "]
["",null,null,null,null,null,null,null,null,null,null,null,null,null,null,null,null,null,null,null,null,null,null,null,null,null,null,null,null,null,"                   "]
["",null,null,null,null,null,null,null,null,null,null,null,null,null,null,null,null,null,null,null,null,null,null,null,null,null,null,null,null,null,"                   "]
["",null,null,null,null,null,null,null,null,null,null,null,null,null,null,null,null,null,null,null,null,null,null,null,null,null,null,null,null,null,"                   "]
["",null,null,null,null,null,null,null,null,null,null,null,null,null,null,null,null,null,null,null,null,null,null,null,null,null,null,null,null,null,"                   "]
["",null,null,null,null,null,null,null,null,null,null,null,null,null,null,null,null,null,null,null,null,null,null,null,null,null,null,null,null,null,"                   "]
["",null,null,null,null,null,null,null,null,null,null,null,null,null,null,null,null,null,null,null,null,null,null,null,null,null,null,null,null,null,"                   "]
["",null,null,null,null,null,null,null,null,null,null,null,null,null,null,null,null,null,null,null,null,null,null,null,null,null,null,null,null,null,"                   "]
["",null,null,null,null,null,null,null,null,null,null,null,null,null,null,null,null,null,null,null,null,null,null,null,null,null,null,null,null,null,"                   "]
["",null,null,null,null,null,null,null,null,null,null,null,null,null,null,null,null,null,null,null,null,null,null,null,null,null,null,null,null,null,"                   "]
["",null,null,null,null,null,null,null,null,null,null,null,null,null,null,null,null,null,null,null,null,null,null,null,null,null,null,null,null,null,"                   "]
["",null,null,null,null,null,null,null,null,null,null,null,null,null,null,null,null,null,null,null,null,null,null,null,null,null,null,null,null,null,"                   "]
["",null,null,null,null,null,null,null,null,null,null,null,null,null,null,null,null,null,null,null,null,null,null,null,null,null,null,null,null,null,"                   "]
[{"$f":"IF(B205=\"\",\"\",A204+1)","v":""},null,null,null,null,null,null,null,null,null,null,null,null,null,null,null,null,null,null,null,null,null,null,null,null,null,null,null,null,null,"                   "]
["",null,null,null,null,null,null,null,null,null,null,null,null,null,null,null,null,null,null,null,null,null,null,null,null,null,null,null,null,null,"                   "]
["",null,null,null,null,null,null,null,null,null,null,null,null,null,null,null,null,null,null,null,null,null,null,null,null,null,null,null,null,null,"                   "]
["",null,null,null,null,null,null,null,null,null,null,null,null,null,null,null,null,null,null,null,null,null,null,null,null,null,null,null,null,null,"                   "]
["",null,null,null,null,null,null,null,null,null,null,null,null,null,null,null,null,null,null,null,null,null,null,null,null,null,null,null,null,null,"                   "]
["",null,null,null,null,null,null,null,null,null,null,null,null,null,null,null,null,null,null,null,null,null,null,null,null,null,null,null,null,null,"                   "]
["",null,null,null,null,null,null,null,null,null,null,null,null,null,null,null,null,null,null,null,null,null,null,null,null,null,null,null,null,null,"                   "]
["",null,null,null,null,null,null,null,null,null,null,null,null,null,null,null,null,null,null,null,null,null,null,null,null,null,null,null,null,null,"                   "]
["",null,null,null,null,null,null,null,null,null,null,null,null,null,null,null,null,null,null,null,null,null,null,null,null,null,null,null,null,null,"                   "]
["",null,null,null,null,null,null,null,null,null,null,null,null,null,null,null,null,null,null,null,null,null,null,null,null,null,null,null,null,null,"                   "]
["",null,null,null,null,null,null,null,null,null,null,null,null,null,null,null,null,null,null,null,null,null,null,null,null,null,null,null,null,null,"                   "]
["",null,null,null,null,null,null,null,null,null,null,null,null,null,null,null,null,null,null,null,null,null,null,null,null,null,null,null,null,null,"                   "]
["",null,null,null,null,null,null,null,null,null,null,null,null,null,null,null,null,null,null,null,null,null,null,null,null,null,null,null,null,null,"                   "]
["",null,null,null,null,null,null,null,null,null,null,null,null,null,null,null,null,null,null,null,null,null,null,null,null,null,null,null,null,null,"                   "]
["",null,null,null,null,null,null,null,null,null,null,null,null,null,null,null,null,null,null,null,null,null,null,null,null,null,null,null,null,null,"                   "]
["",null,null,null,null,null,null,null,null,null,null,null,null,null,null,null,null,null,null,null,null,null,null,null,null,null,null,null,null,null,"                   "]
["",null,null,null,null,null,null,null,null,null,null,null,null,null,null,null,null,null,null,null,null,null,null,null,null,null,null,null,null,null,"                   "]
["",null,null,null,null,null,null,null,null,null,null,null,null,null,null,null,null,null,null,null,null,null,null,null,null,null,null,null,null,null,"                   "]
["",null,null,null,null,null,null,null,null,null,null,null,null,null,null,null,null,null,null,null,null,null,null,null,null,null,null,null,null,null,"                   "]
["",null,null,null,null,null,null,null,null,null,null,null,null,null,null,null,null,null,null,null,null,null,null,null,null,null,null,null,null,null,"                   "]
["",null,null,null,null,null,null,null,null,null,null,null,null,null,null,null,null,null,null,null,null,null,null,null,null,null,null,null,null,null,"                   "]
["",null,null,null,null,null,null,null,null,null,null,null,null,null,null,null,null,null,null,null,null,null,null,null,null,null,null,null,null,null,"                   "]
["",null,null,null,null,null,null,null,null,null,null,null,null,null,null,null,null,null,null,null,null,null,null,null,null,null,null,null,null,null,"                   "]
["",null,null,null,null,null,null,null,null,null,null,null,null,null,null,null,null,null,null,null,null,null,null,null,null,null,null,null,null,null,"                   "]
["",null,null,null,null,null,null,null,null,null,null,null,null,null,null,null,null,null,null,null,null,null,null,null,null,null,null,null,null,null,"                   "]
["",null,null,null,null,null,null,null,null,null,null,null,null,null,null,null,null,null,null,null,null,null,null,null,null,null,null,null,null,null,"                   "]
["",null,null,null,null,null,null,null,null,null,null,null,null,null,null,null,null,null,null,null,null,null,null,null,null,null,null,null,null,null,"                   "]
["",null,null,null,null,null,null,null,null,null,null,null,null,null,null,null,null,null,null,null,null,null,null,null,null,null,null,null,null,null,"                   "]
["",null,null,null,null,null,null,null,null,null,null,null,null,null,null,null,null,null,null,null,null,null,null,null,null,null,null,null,null,null,"                   "]
["",null,null,null,null,null,null,null,null,null,null,null,null,null,null,null,null,null,null,null,null,null,null,null,null,null,null,null,null,null,"                   "]
["",null,null,null,null,null,null,null,null,null,null,null,null,null,null,null,null,null,null,null,null,null,null,null,null,null,null,null,null,null,"                   "]
["",null,null,null,null,null,null,null,null,null,null,null,null,null,null,null,null,null,null,null,null,null,null,null,null,null,null,null,null,null,"                   "]
["",null,null,null,null,null,null,null,null,null,null,null,null,null,null,null,null,null,null,null,null,null,null,null,null,null,null,null,null,null,"                   "]
["",null,null,null,null,null,null,null,null,null,null,null,null,null,null,null,null,null,null,null,null,null,null,null,null,null,null,null,null,null,"                   "]
["",null,null,null,null,null,null,null,null,null,null,null,null,null,null,null,null,null,null,null,null,null,null,null,null,null,null,null,null,null,"                   "]
["",null,null,null,null,null,null,null,null,null,null,null,null,null,null,null,null,null,null,null,null,null,null,null,null,null,null,null,null,null,"                   "]
["",null,null,null,null,null,null,null,null,null,null,null,null,null,null,null,null,null,null,null,null,null,null,null,null,null,null,null,null,null,"                   "]
["",null,null,null,null,null,null,null,null,null,null,null,null,null,null,null,null,null,null,null,null,null,null,null,null,null,null,null,null,null,"                   "]
["",null,null,null,null,null,null,null,null,null,null,null,null,null,null,null,null,null,null,null,null,null,null,null,null,null,null,null,null,null,"                   "]
["",null,null,null,null,null,null,null,null,null,null,null,null,null,null,null,null,null,null,null,null,null,null,null,null,null,null,null,null,null,"                   "]
["",null,null,null,null,null,null,null,null,null,null,null,null,null,null,null,null,null,null,null,null,null,null,null,null,null,null,null,null,null,"                   "]
["",null,null,null,null,null,null,null,null,null,null,null,null,null,null,null,null,null,null,null,null,null,null,null,null,null,null,null,null,null,"                   "]
["",null,null,null,null,null,null,null,null,null,null,null,null,null,null,null,null,null,null,null,null,null,null,null,null,null,null,null,null,null,"                   "]
["",null,null,null,null,null,null,null,null,null,null,null,null,null,null,null,null,null,null,null,null,null,null,null,null,null,null,null,null,null,"                   "]
["",null,null,null,null,null,null,null,null,null,null,null,null,null,null,null,null,null,null,null,null,null,null,null,null,null,null,null,null,null,"                   "]
["",null,null,null,null,null,null,null,null,null,null,null,null,null,null,null,null,null,null,null,null,null,null,null,null,null,null,null,null,null,"                   "]
["",null,null,null,null,null,null,null,null,null,null,null,null,null,null,null,null,null,null,null,null,null,null,null,null,null,null,null,null,null,"                   "]
["",null,null,null,null,null,null,null,null,null,null,null,null,null,null,null,null,null,null,null,null,null,null,null,null,null,null,null,null,null,"                   "]
["",null,null,null,null,null,null,null,null,null,null,null,null,null,null,null,null,null,null,null,null,null,null,null,null,null,null,null,null,null,"                   "]
["",null,null,null,null,null,null,null,null,null,null,null,null,null,null,null,null,null,null,null,null,null,null,null,null,null,null,null,null,null,"                   "]
["",null,null,null,null,null,null,null,null,null,null,null,null,null,null,null,null,null,null,null,null,null,null,null,null,null,null,null,null,null,"                   "]
["",null,null,null,null,null,null,null,null,null,null,null,null,null,null,null,null,null,null,null,null,null,null,null,null,null,null,null,null,null,"                   "]
[""]
[""]
[""]
[""]
[""]
[""]
[""]
[""]
[""]
[""]
[""]
[""]
[{"$f":"IF(B269=\"\",\"\",A268+1)","v":""}]
[""]
[""]
[""]
[""]
[""]
[""]
[""]
[""]
[""]
[""]
[""]
[""]
[""]
[""]
[""]
[""]
[""]
[""]
[""]
[""]
[""]
[""]
[""]
[""]
[""]
[""]
[""]
[""]
[""]
[""]
[""]
[""]
[""]
[""]
[""]
[""]
[""]
[""]
[""]
[""]
[""]
[""]
[""]
[""]
[""]
[""]
[""]
[""]
[""]
[""]
[""]
[""]
[""]
[""]
[""]
[""]
[""]
[""]
[""]
[""]
[""]
[""]
[""]
[{"$f":"IF(B333=\"\",\"\",A332+1)","v":""}]
[""]
[""]
[""]
[""]
[""]
[""]
[""]
[""]
[""]
[""]
[""]
[""]
[""]
[""]
[""]
[""]
[""]
[""]
[""]
[""]
[""]
[""]
[""]
[""]
[""]
[""]
[""]
[""]
[""]
[""]
[""]
[""]
[""]
[""]
[""]
[""]
[""]
[""]
[""]
[""]
[""]
[""]
[""]
[""]
[""]
[""]
[""]
[""]
[""]
[""]
[""]
[""]
[""]
[""]
[""]
[""]
[""]
[""]
[""]
[""]
[""]
[""]
[""]
[{"$f":"IF(B397=\"\",\"\",A396+1)","v":""}]
[""]
[""]
[""]
[""]
[""]
[""]
[""]
[""]
[""]
[""]
[""]
[""]
[""]
[""]
[""]
[""]
[""]
[""]
[""]
[""]
[""]
[""]
[""]
[""]
[""]
[""]
[""]
[""]
[""]
[""]
[""]
[""]
[""]
[""]
[""]
[""]
[""]
[""]
[""]
[""]
[""]
[""]
[""]
[""]
[""]
[""]
[""]
[""]
[""]
[""]
[""]
[""]
[""]
[""]
[""]
[""]
[""]
[""]
[""]
[""]
[""]
[""]
[""]
[{"$f":"IF(B461=\"\",\"\",A460+1)","v":""}]
[""]
[""]
[""]
[""]
[""]
[""]
[""]
[""]
[""]
[""]
[""]
[""]
[""]
[""]
[""]
[""]
[""]
[""]
[""]
[""]
[""]
[""]
[""]
[""]
[""]
[""]
[""]
[""]
[""]
[""]
[""]
[""]
[""]
[""]
[""]
[""]
[""]
[""]
[""]
[""]
[""]
[""]
[""]
[""]
[""]
[""]

{"sheet":"Sheet3 (2)","index":1,"n_rows":34,"n_cols":32,"rows_kept":34,"cut":false,"hidden":false,"merged":[[1,0,1,1],[1,2,1,10],[1,11,1,14],[1,15,1,22],[2,0,2,1],[2,2,2,10],[2,11,2,14],[2,15,2,22],[16,0,16,2],[16,4,16,11],[16,13,16,23],[3,0,3,1],[3,2,3,10],[3,11,3,14],[3,15,3,22],[5,4,5,15],[7,1,7,10],[7,12,7,14],[7,15,7,19],[13,1,14,4],[13,5,14,22],[15,0,15,2],[15,4,15,11],[15,12,15,23],[19,0,19,1],[19,2,19,10],[19,11,19,13],[19,14,19,23],[20,0,20,1],[20,2,20,10],[20,11,20,13],[20,14,20,23],[34,0,34,2],[34,4,34,11],[34,13,34,23],[21,0,21,1],[21,2,21,10],[21,11,21,13],[21,14,21,22],[23,4,23,15],[25,1,25,10],[25,12,25,14],[25,15,25,19],[31,1,32,4],[31,5,32,22],[33,0,33,2],[33,4,33,11],[33,12,33,23]]}
[null,null,null,null,null,null,null,null,null,null,null,null,null,null,null,null,null,null,null,null,null,null,null,null,null,null,11]
["محافظه",null,null,null,null,null,null,null,null,null,null,"العام الدراسى",null,null,null,null,null,null,null,null,null,null,null,null,null,null,null,null,null,null,null,9]
["ادارة",null,null,null,null,null,null,null,null,null,null,"الصف"]
["مدرسة ",null,null,null,null,null,null,null,null,null,null,"التخصص"]
[]
[null,null,null,null,"بيان درجات إمتحان أخر العام \n"]
[null,null,null,null,null,null,null,null,null,null,null,null,null,null,null,null,null,null,null,null,null,null,null,4]
["إسم الطالب",{"$f":"IFERROR(VLOOKUP($P$8,'6'!$B$11:$AE$1001,4,0),\"\")","v":"احمد عطا نورالدين سليمان"},null,null,null,null,null,null,null,null,null,null,"رقم الجلوس/",null,null,{"$f":"IFERROR(VLOOKUP($AF$2,'6'!$A$11:$AE$1001,2,0),\"\")","v":118}]
["الماده",{"$f":"'6'!F7","v":"اللغة العربية"},{"$f":"'6'!G7","v":"اللغة الانجليزية"},{"$f":"'6'!H7","v":"التربية القومية"},{"$f":"'6'!I7","v":"غغغغغ"},{"$f":"'6'!J7","v":"الرياضيات"},{"$f":"'6'!K7","v":"المجموع الكلى"},{"$f":"'6'!L8","v":"ytyt"},{"$f":"'6'!M8","v":0},{"$f":"'6'!N8","v":"اعداد الارض لزراعة محاصيل الخضر والزينة فى الحقل المكشوف والزراعات المحمية"},{"$f":"'6'!O8","v":"انشاء مشاتل الحاصلات البستانية"},{"$f":"'6'!P8","v":"ghjgjg"},{"$f":"'6'!Q8","v":"jhfgjhgjg"},{"$f":"'6'!R8","v":"ghjgjhg"},{"$f":"'6'!S8","v":0},{"$f":"'6'!T8","v":0},{"$f":"'6'!U8","v":"اعداد الارض لزراعة الفاكهه والزينة فى الحقل المكشوف والزراعات المحمية"},{"$f":"'6'!V8","v":"زراعة اشجار الفاكهه والزينة"},{"$f":"'6'!W8","v":"مكافحة افات نباتات الزينة"},{"$f":"'6'!X8","v":0},{"$f":"'6'!Y8","v":"حاسب الى"},{"$f":"'6'!Z8","v":0},{"$f":"'6'!AA8","v":0},{"$f":"'6'!AB7","v":"عدد المواد"}]
["نهايه كبرى"]
["نهايه صغرى",{"$f":"B10/2","v":0},{"$f":"C10/2","v":0},0,0,0,0,0,0,0,0,0,0,0,0,0,0,0,0,0,0,0,0,0]
["الدرجه",{"$f":"IFERROR(VLOOKUP($P$8,'6'!$B$11:$AE$1001,5,0),\"\")","v":16},{"$f":"IFERROR(VLOOKUP($P$8,'6'!$B$11:$AE$1001,6,0),\"\")","v":12},{"$f":"IFERROR(VLOOKUP($P$8,'6'!$B$11:$AE$1001,7,0),\"\")","v":10},{"$f":"IFERROR(VLOOKUP($P$8,'6'!$B$11:$AE$1001,8,0),\"\")","v":17},{"$f":"IFERROR(VLOOKUP($P$8,'6'!$B$11:$AE$1001,9,0),\"\")","v":21},{"$f":"IFERROR(VLOOKUP($P$8,'6'!$B$11:$AE$1001,10,0),\"\")","v":76},{"$f":"IFERROR(VLOOKUP($P$8,'6'!$B$11:$AE$1001,11,0),\"\")","v":11},{"$f":"IFERROR(VLOOKUP($P$8,'6'!$B$11:$AE$1001,12,0),\"\")","v":0},{"$f":"IFERROR(VLOOKUP($P$8,'6'!$B$11:$AE$1001,13,0),\"\")","v":"جدير"},{"$f":"IFERROR(VLOOKUP($P$8,'6'!$B$11:$AE$1001,14,0),\"\")","v":"جدير"},{"$f":"IFERROR(VLOOKUP($P$8,'6'!$B$11:$AE$1001,15,0),\"\")","v":"جدير"},{"$f":"IFERROR(VLOOKUP($P$8,'6'!$B$11:$AE$1001,16,0),\"\")","v":"جدير"},{"$f":"IFERROR(VLOOKUP($P$8,'6'!$B$11:$AE$1001,17,0),\"\")","v":"جدير"},{"$f":"IFERROR(VLOOKUP($P$8,'6'!$B$11:$AE$1001,18,0),\"\")","v":0},{"$f":"IFERROR(VLOOKUP($P$8,'6'!$B$11:$AE$1001,19,0),\"\")","v":0},{"$f":"IFERROR(VLOOKUP($P$8,'6'!$B$11:$AE$1001,20,0),\"\")","v":"جدير"},{"$f":"IFERROR(VLOOKUP($P$8,'6'!$B$11:$AE$1001,21,0),\"\")","v":"جدير"},{"$f":"IFERROR(VLOOKUP($P$8,'6'!$B$11:$AE$1001,22,0),\"\")","v":"جدير"},{"$f":"IFERROR(VLOOKUP($P$8,'6'!$B$11:$AE$1001,23,0),\"\")","v":0},{"$f":"IFERROR(VLOOKUP($P$8,'6'!$B$11:$AE$1001,24,0),\"\")","v":"جدير"},{"$f":"IFERROR(VLOOKUP($P$8,'6'!$B$11:$AE$1001,25,0),\"\")","v":0},{"$f":"IFERROR(VLOOKUP($P$8,'6'!$B$11:$AE$1001,26,0),\"\")","v":0},{"$f":"IFERROR(VLOOKUP($P$8,'6'!$B$11:$AE$1001,27,0),\"\")","v":0},null,null,1,null,5]
[]
["حالة الطالب",{"$f":"IFERROR(VLOOKUP($P$8,'6'!$B$11:$AE$1001,28,0),\"\")","v":"ناجح"},null,null,null,{"$f":"IFERROR(VLOOKUP($P$8,'6'!$B$11:$AE$1001,30,0),\"\")","v":"                   "}]
[]
["كتابه",null,null,null,"راجع",null,null,null,null,null,null,null,"مدير المدرسه"]
[]
[]
[]
["محافظه",null,null,null,null,null,null,null,null,null,null,"العام الدراسى"]
["ادارة",null,null,null,null,null,null,null,null,null,null,"الصف"]
["مدرسة ",null,null,null,null,null,null,null,null,null,null,"التخصص"]
[]
[null,null,null,null,"بيان درجات إمتحان أخر العام \n"]
[]
["إسم الطالب",{"$f":"IFERROR(VLOOKUP($P$26,'6'!$B$11:$AE$1001,4,0),\"\")","v":"احمد علي الورداني علي"},null,null,null,null,null,null,null,null,null,null,"رقم الجلوس/",null,null,{"$f":"IFERROR(VLOOKUP($AF$2+1,'6'!$A$11:$AE$1001,2,0),\"\")","v":119}]
["الماده",{"$f":"'6'!F7","v":"اللغة العربية"},{"$f":"'6'!G7","v":"اللغة الانجليزية"},{"$f":"'6'!H7","v":"التربية القومية"},{"$f":"'6'!I7","v":"غغغغغ"},{"$f":"'6'!J7","v":"الرياضيات"},{"$f":"'6'!K7","v":"المجموع الكلى"},{"$f":"'6'!L8","v":"ytyt"},{"$f":"'6'!M8","v":0},{"$f":"'6'!N8","v":"اعداد الارض لزراعة محاصيل الخضر والزينة فى الحقل المكشوف والزراعات المحمية"},{"$f":"'6'!O8","v":"انشاء مشاتل الحاصلات البستانية"},{"$f":"'6'!P8","v":"ghjgjg"},{"$f":"'6'!Q8","v":"jhfgjhgjg"},{"$f":"'6'!R8","v":"ghjgjhg"},{"$f":"'6'!S8","v":0},{"$f":"'6'!T8","v":0},{"$f":"'6'!U8","v":"اعداد الارض لزراعة الفاكهه والزينة فى الحقل المكشوف والزراعات المحمية"},{"$f":"'6'!V8","v":"زراعة اشجار الفاكهه والزينة"},{"$f":"'6'!W8","v":"مكافحة افات نباتات الزينة"},{"$f":"'6'!X8","v":0},{"$f":"'6'!Y8","v":"حاسب الى"},{"$f":"'6'!Z8","v":0},{"$f":"'6'!AA8","v":0},{"$f":"'6'!AB7","v":"عدد المواد"}]
["نهايه كبرى"]
["نهايه صغرى",{"$f":"B28/2","v":0},0,0,0,0,0,0,0,0,0,0,0,0,0,null,null,null,null,null,null,0,0,0]
["الدرجه",{"$f":"IFERROR(VLOOKUP($P$26,'6'!$B$11:$AE$1001,5,0),\"\")","v":16},{"$f":"IFERROR(VLOOKUP($P$26,'6'!$B$11:$AE$1001,6,0),\"\")","v":12},{"$f":"IFERROR(VLOOKUP($P$26,'6'!$B$11:$AE$1001,7,0),\"\")","v":10},{"$f":"IFERROR(VLOOKUP($P$26,'6'!$B$11:$AE$1001,8,0),\"\")","v":17},{"$f":"IFERROR(VLOOKUP($P$26,'6'!$B$11:$AE$1001,9,0),\"\")","v":21},{"$f":"IFERROR(VLOOKUP($P$26,'6'!$B$11:$AE$1001,10,0),\"\")","v":76},{"$f":"IFERROR(VLOOKUP($P$26,'6'!$B$11:$AE$1001,11,0),\"\")","v":11},{"$f":"IFERROR(VLOOKUP($P$26,'6'!$B$11:$AE$1001,12,0),\"\")","v":0},{"$f":"IFERROR(VLOOKUP($P$26,'6'!$B$11:$AE$1001,13,0),\"\")","v":"جدير"},{"$f":"IFERROR(VLOOKUP($P$26,'6'!$B$11:$AE$1001,14,0),\"\")","v":"جدير"},{"$f":"IFERROR(VLOOKUP($P$26,'6'!$B$11:$AE$1001,15,0),\"\")","v":"جدير"},{"$f":"IFERROR(VLOOKUP($P$26,'6'!$B$11:$AE$1001,16,0),\"\")","v":"جدير"},{"$f":"IFERROR(VLOOKUP($P$26,'6'!$B$11:$AE$1001,17,0),\"\")","v":"جدير"},{"$f":"IFERROR(VLOOKUP($P$26,'6'!$B$11:$AE$1001,18,0),\"\")","v":0},{"$f":"IFERROR(VLOOKUP($P$26,'6'!$B$11:$AE$1001,19,0),\"\")","v":0},{"$f":"IFERROR(VLOOKUP($P$26,'6'!$B$11:$AE$1001,20,0),\"\")","v":"جدير"},{"$f":"IFERROR(VLOOKUP($P$26,'6'!$B$11:$AE$1001,21,0),\"\")","v":"جدير"},{"$f":"IFERROR(VLOOKUP($P$26,'6'!$B$11:$AE$1001,22,0),\"\")","v":"جدير"},{"$f":"IFERROR(VLOOKUP($P$26,'6'!$B$11:$AE$1001,23,0),\"\")","v":0},{"$f":"IFERROR(VLOOKUP($P$26,'6'!$B$11:$AE$1001,24,0),\"\")","v":"جدير"},{"$f":"IFERROR(VLOOKUP($P$26,'6'!$B$11:$AE$1001,25,0),\"\")","v":0},{"$f":"IFERROR(VLOOKUP($P$26,'6'!$B$11:$AE$1001,26,0),\"\")","v":0},{"$f":"IFERROR(VLOOKUP($P$26,'6'!$B$11:$AE$1001,27,0),\"\")","v":0}]
[]
["حالة الطالب",{"$f":"IFERROR(VLOOKUP($P$26,'6'!$B$11:$AE$1001,28,0),\"\")","v":"ناجح"},null,null,null,{"$f":"IFERROR(VLOOKUP($P$26,'6'!$B$11:$AE$1001,30,0),\"\")","v":"                   "}]
[]
["كتابه",null,null,null,"راجع",null,null,null,null,null,null,null,"مدير المدرسه"]

{"sheet":"Sheet1","index":2,"n_rows":0,"n_cols":0,"rows_kept":0,"cut":false,"hidden":false,"merged":[]}

{"sheet":"Sheet2","index":3,"n_rows":0,"n_cols":0,"rows_kept":0,"cut":false,"hidden":false,"merged":[]}

{"sheet":"Sheet3","index":4,"n_rows":0,"n_cols":0,"rows_kept":0,"cut":false,"hidden":false,"merged":[]}